fUSD/lending_fUSD_20240215
["ID","MTS","AMOUNT","RATE_DAILY","PERIOD"]
[314119255,1707999043487,-168.0,0.00038,2]
[314119256,1707999043496,-151.0,0.00038134,2]
[314119257,1707999043507,-151.021518,0.00038148,20]
[314119258,1707999043516,-2526.94,0.00038151,2]
[314119259,1707999043526,-150.0,0.00038212,2]
[314119260,1707999043535,-3898.59033568,0.00038222,2]
[314119261,1707999043545,-153.70464917,0.00038339,2]
[314119262,1707999043554,-6880.2,0.00038352,2]
[314119263,1707999043563,-637.287565,0.00038356,2]
[314119264,1707999043572,-5000.0,0.00038356,2]
[314119265,1707999043582,-1000.0,0.00038356,2]
[314119266,1707999043591,-295.0,0.00038356,7]
[314119267,1707999043600,-151.0,0.00038356,7]
[314119268,1707999043609,-151.0,0.00038356,7]
[314119269,1707999043620,-150.56,0.00038356,2]
[314119270,1707999043630,-155.861271,0.00038356,7]
[314119271,1707999043639,-3530.55,0.00038356,15]
[314119272,1707999043648,-151.0,0.00038356,7]
[314119273,1707999043657,-151.0,0.00038356,7]
[314119274,1707999043666,-151.0,0.00038356,7]
[314119275,1707999043676,-151.0,0.00038356,7]
[314119276,1707999043685,-151.0,0.00038356,7]
[314119277,1707999043694,-151.0,0.00038356,7]
[314119278,1707999043703,-176.104092,0.00038356,7]
[314119279,1707999043712,-176.104092,0.00038356,7]
[314119280,1707999043721,-176.104092,0.00038356,7]
[314119281,1707999043730,-176.104092,0.00038356,7]
[314119282,1707999043739,-151.0,0.00038356,7]
[314119283,1707999043748,-151.0,0.00038356,7]
[314119284,1707999043758,-151.0,0.00038356,7]
[314119285,1707999043767,-171.083297,0.00038356,7]
[314119286,1707999043777,-151.0,0.00038356,7]
[314119287,1707999043786,-10000.0,0.000384,15]
[314119288,1707999043795,-375.0,0.000384,7]
[314119289,1707999043804,-168.96,0.00038425,2]
[314119291,1707999043814,-151.021518,0.00038448,20]
[314119293,1707999043823,-211.0,0.0003848,2]
[314119295,1707999043832,-209.0,0.0003848,2]
[314119297,1707999043841,-212.0,0.0003848,2]
[314119298,1707999043850,-169.32,0.00038506,2]
[314119299,1707999043860,-5000.0,0.0003863,5]
[314119300,1707999043870,-432.0,0.0003864,2]
[314119301,1707999043879,-709.16,0.000387,7]
[314119302,1707999043888,-150.0,0.00038726,2]
[314119303,1707999043897,-150.0,0.00038726,2]
[314119304,1707999043907,-150.0,0.00038726,2]
[314119305,1707999043916,-151.021518,0.00038748,20]
[314119306,1707999043925,-10776.47,0.0003877,7]
[314119307,1707999043934,-10776.47,0.0003877,7]
[314119308,1707999043943,-10776.47,0.0003877,7]
[314119309,1707999043952,-10776.47,0.0003877,7]
[314119310,1707999043961,-15179.44247747,0.00038781,2]
[314119311,1707999043970,-150.0,0.00038789,2]
[314119312,1707999043979,-695.76,0.000388,7]
[314119313,1707999043988,-154.57,0.000388,3]
[314119314,1707999043997,-154.57,0.000388,3]
[314119315,1707999044006,-464.08,0.000388,3]
[314119316,1707999044015,-464.08,0.000388,3]
[314119317,1707999044024,-464.08,0.000388,3]
[314119318,1707999044033,-464.08,0.000388,3]
[314119319,1707999044042,-464.08,0.000388,3]
[314119320,1707999044052,-464.08,0.000388,3]
[314119321,1707999044061,-464.08,0.000388,3]
[314119322,1707999044070,-464.08,0.000388,3]
[314119323,1707999044079,-464.08,0.000388,3]
[314119324,1707999044089,-464.08,0.000388,3]
[314119325,1707999044098,-464.08,0.000388,3]
[314119326,1707999044107,-464.08,0.000388,3]
[314119327,1707999044117,-464.08,0.000388,3]
[314119328,1707999044126,-464.08,0.000388,3]
[314119329,1707999044135,-464.08,0.000388,3]
[314119330,1707999044144,-464.08,0.000388,3]
[314119331,1707999044153,-464.08,0.000388,3]
[314119332,1707999044162,-464.08,0.000388,3]
[314119333,1707999044171,-464.08,0.000388,3]
[314119334,1707999044180,-464.08,0.000388,3]
[314119335,1707999044189,-2598.36187534,0.00038816,2]
[314119336,1707999044200,-245000.0,0.00038819,2]
[314119337,1707999044209,-5000.0,0.00038904,8]
[314119338,1707999044218,-166.12,0.00038908,2]
[314119339,1707999044227,-151.0,0.00038914,2]
[314119340,1707999044236,-11230.04746652,0.00038914,12]
[314119341,1707999044246,-151.0,0.00038918,7]
[314119342,1707999044345,-150.0,0.0003895,2]
[314119343,1707999044354,-166471.1641825,0.00038951,2]
[314119344,1707999044363,-16189.31061349,0.00038951,2]
[314119345,1707999044374,-18739.81671836,0.00038951,2]
[314119346,1707999044383,-12902.84765519,0.00038951,2]
[314119347,1707999044392,-1210.0,0.00038951,2]
[314119348,1707999044401,-2122.85837043,0.00038951,2]
[314119349,1707999044410,-334.90027175,0.00038951,2]
[314119350,1707999044420,-2892.9953561,0.00038951,2]
[314119351,1707999044431,-288.82931725,0.00038951,120]
[314119352,1707999044441,-5805.85101675,0.00038951,2]
[314119353,1707999044450,-1462.94123009,0.00038951,2]
[314119354,1707999044459,-7093.57386482,0.00038951,2]
[314119355,1707999044469,-2630.36481404,0.00038951,2]
[314119356,1707999044478,-2361.54773627,0.00038951,2]
[314119357,1707999044487,-2570.52193841,0.00038951,2]
[314119358,1707999044496,-132204.64691036,0.00038951,2]
[314119359,1707999044505,-3126.15322596,0.00038951,2]
[314119360,1707999044515,-167.66096928,0.00038951,2]
[314119361,1707999044524,-10026.20296418,0.00038951,2]
[314119362,1707999044534,-3042.34635825,0.00038951,2]
[314119363,1707999044543,-3668.02171984,0.00038951,2]
[314119364,1707999044552,-206.47188145,0.00038951,2]
[314119365,1707999044562,-4821.56306069,0.00038951,2]
[314119366,1707999044570,-173.91639874,0.00038951,2]
[314119367,1707999044579,-71922.41356881,0.00038951,2]
[314119368,1707999044588,-161.6483363,0.00038951,2]
[314119369,1707999044597,-790.87281783,0.00038951,2]
[314119370,1707999044607,-8886.7145232,0.00038951,2]
[314119371,1707999044616,-1261.98064401,0.00038951,2]
[314119372,1707999044627,-4757.81609302,0.00038951,2]
[314119373,1707999044636,-41074.0093764,0.00038951,2]
[314119374,1707999044645,-1377.19229444,0.00038951,30]
[314119375,1707999044654,-984.54123815,0.00038951,2]
[314119376,1707999044663,-21832.86594093,0.00038951,2]
[314119377,1707999044672,-162.95137962,0.00038951,2]
[314119378,1707999044681,-162.73999049,0.00038951,15]
[314119379,1707999044690,-19479.5284887,0.00038951,2]
[314119380,1707999044699,-532.31712027,0.00038951,2]
[314119381,1707999044708,-636.73963912,0.00038951,4]
[314119382,1707999044717,-156.97067029,0.00038951,2]
[314119383,1707999044726,-2090.7291501,0.00038951,10]
[314119384,1707999044734,-869.33616524,0.00038951,120]
[314119385,1707999044744,-716.97515648,0.00038951,2]
[314119386,1707999044753,-584.84890433,0.00038951,120]
[314119387,1707999044762,-54366.61600931,0.00038951,2]
[314119388,1707999044771,-155.43263762,0.00038951,2]
[314119389,1707999044780,-5915.03359233,0.00038951,2]
[314119390,1707999044789,-11066.12535873,0.00038951,2]
[314119391,1707999044798,-1044.78293957,0.00038951,2]
[314119392,1707999044807,-413.6482853,0.00038951,120]
[314119393,1707999044815,-316.52391903,0.00038951,30]
[314119394,1707999044825,-1751.579423,0.00038951,30]
[314119395,1707999044834,-151.0,0.00038951,7]
[314119396,1707999044843,-151.0,0.00038951,7]
[314119397,1707999044852,-176.104092,0.00038951,7]
[314119398,1707999044861,-176.104092,0.00038951,7]
[314119399,1707999044870,-151.0,0.00038951,7]
[314119400,1707999044879,-12750.0,0.00039,2]
[314119401,1707999044888,-10776.47,0.00039044,7]
[314119402,1707999044897,-10776.47,0.00039044,7]
[314119403,1707999044905,-153.70464917,0.00039048,3]
[314119404,1707999044914,-150.0,0.00039055,2]
[314119405,1707999044923,-155.0,0.0003909,2]
[314119406,1707999044933,-151.021518,0.00039148,20]
[314119407,1707999044943,-158.29197513,0.0003916,12]
[314119408,1707999044952,-1000.0,0.000392,2]
[314119409,1707999044961,-211.0,0.0003923,2]
[314119410,1707999044970,-209.0,0.0003923,2]
[314119411,1707999044979,-212.0,0.0003923,2]
[314119412,1707999044988,-150.0,0.00039232,2]
[314119413,1707999044997,-151.0,0.00039252,7]
[314119414,1707999045006,-176.104092,0.00039252,7]
[314119415,1707999045015,-176.104092,0.00039252,7]
[314119416,1707999045024,-151.0,0.00039252,7]
[314119417,1707999045033,-601.45,0.00039252,2]
[314119418,1707999045042,-100000.0,0.00039252,2]
[314119419,1707999045052,-167.89,0.0003926,2]
[314119420,1707999045061,-150.0,0.00039274,2]
[314119421,1707999045070,-227.64625164,0.00039274,2]
[314119422,1707999045079,-10776.47,0.00039317,7]
[314119423,1707999045088,-10776.47,0.00039317,7]
[314119424,1707999045098,-150.0,0.00039366,2]
[314119425,1707999045107,-1000.0,0.00039407,2]
[314119426,1707999045116,-150.0,0.00039434,2]
[314119427,1707999045127,-151.021518,0.00039448,20]
[314119428,1707999045136,-150.0,0.00039449,2]
[314119429,1707999045146,-514.62392345,0.00039452,7]
[314119430,1707999045155,-509.02657177,0.00039452,7]
[314119431,1707999045165,-187.33496323,0.00039452,7]
[314119432,1707999045174,-505.04790904,0.00039452,15]
[314119433,1707999045184,-501.81099762,0.00039452,7]
[314119434,1707999045193,-796.609456,0.00039452,2]
[314119435,1707999045202,-500.0,0.00039452,7]
[314119436,1707999045212,-296.91424138,0.00039452,7]
[314119437,1707999045221,-500.0,0.00039452,7]
[314119438,1707999045230,-500.0,0.00039452,7]
[314119439,1707999045239,-500.01529521,0.00039452,7]
[314119440,1707999045249,-1000.0,0.00039452,7]
[314119441,1707999045259,-548.58365102,0.00039452,7]
[314119442,1707999045268,-512.91372318,0.00039452,7]
[314119443,1707999045277,-500.0,0.00039452,7]
[314119444,1707999045287,-520.48319741,0.00039452,7]
[314119445,1707999045297,-500.0,0.00039452,7]
[314119446,1707999045306,-500.0,0.00039452,7]
[314119447,1707999045315,-522.50593265,0.00039452,7]
[314119448,1707999045325,-500.0,0.00039452,7]
[314119449,1707999045334,-500.0,0.00039452,7]
[314119450,1707999045344,-585.94770258,0.00039452,7]
[314119451,1707999045352,-500.0,0.00039452,7]
[314119452,1707999045362,-500.0,0.00039452,7]
[314119453,1707999045372,-512.47102481,0.00039452,7]
[314119454,1707999045381,-151.0,0.00039452,7]
[314119455,1707999045390,-509.96565593,0.00039452,7]
[314119456,1707999045398,-500.0,0.00039452,7]
[314119457,1707999045407,-500.0,0.00039452,7]
[314119458,1707999045417,-500.0,0.00039452,7]
[314119459,1707999045427,-507.89167163,0.00039452,7]
[314119460,1707999045439,-500.0,0.00039452,7]
[314119461,1707999045447,-505.36604608,0.00039452,7]
[314119462,1707999045456,-505.18459794,0.00039452,7]
[314119463,1707999045465,-500.0,0.00039452,7]
[314119464,1707999045475,-640.12081478,0.00039452,7]
[314119465,1707999045484,-502.63658136,0.00039452,7]
[314119466,1707999045493,-404.44335281,0.00039452,7]
[314119467,1707999045502,-500.0,0.00039452,7]
[314119468,1707999045512,-595.26857741,0.00039452,7]
[314119469,1707999045521,-500.0,0.00039452,7]
[314119470,1707999045530,-515.61636779,0.00039452,7]
[314119471,1707999045539,-500.0,0.00039452,7]
[314119472,1707999045548,-500.0,0.00039452,7]
[314119473,1707999045557,-500.0,0.00039452,7]
[314119474,1707999045565,-500.0,0.00039452,7]
[314119475,1707999045575,-500.0,0.00039452,7]
[314119476,1707999045585,-515.12583124,0.00039452,7]
[314119477,1707999045593,-513.78643283,0.00039452,7]
[314119478,1707999045603,-500.0,0.00039452,7]
[314119479,1707999045611,-500.93866923,0.00039452,7]
[314119480,1707999045622,-502.79148549,0.00039452,7]
[314119481,1707999045631,-500.0,0.00039452,7]
[314119482,1707999045640,-500.0,0.00039452,7]
[314119483,1707999045649,-500.0,0.00039452,7]
[314119484,1707999045658,-500.0,0.00039452,7]
[314119485,1707999045667,-500.0,0.00039452,7]
[314119486,1707999045676,-500.0,0.00039452,7]
[314119487,1707999045685,-302.03527271,0.00039452,7]
[314119488,1707999045694,-571.62106035,0.00039452,7]
[314119489,1707999045702,-514.13372613,0.00039452,7]
[314119490,1707999045712,-249.90903493,0.00039452,7]
[314119491,1707999045721,-500.0,0.00039452,7]
[314119492,1707999045730,-587.40959512,0.00039452,7]
[314119493,1707999045739,-360.74106704,0.00039452,7]
[314119494,1707999045748,-321.69648625,0.00039452,7]
[314119495,1707999045758,-500.2639986,0.00039452,7]
[314119496,1707999045766,-488.34282612,0.00039452,7]
[314119497,1707999045775,-512.62512569,0.00039452,7]
[314119498,1707999045784,-500.0,0.00039452,7]
[314119499,1707999045793,-648.05617928,0.00039452,7]
[314119500,1707999045802,-500.0,0.00039452,7]
[314119501,1707999045811,-500.0,0.00039452,7]
[314119502,1707999045820,-500.0,0.00039452,7]
[314119503,1707999045830,-500.0,0.00039452,7]
[314119504,1707999045839,-500.0,0.00039452,7]
[314119505,1707999045848,-502.89774857,0.00039452,7]
[314119506,1707999045858,-500.0,0.00039452,7]
[314119507,1707999045866,-500.0,0.00039452,7]
[314119508,1707999045877,-502.1469545,0.00039452,7]
[314119509,1707999045886,-500.0,0.00039452,7]
[314119510,1707999045895,-500.0,0.00039452,7]
[314119511,1707999045903,-500.0,0.00039452,7]
[314119512,1707999045912,-500.0,0.00039452,7]
[314119513,1707999045921,-500.0,0.00039452,7]
[314119514,1707999045930,-500.0,0.00039452,7]
[314119515,1707999045939,-512.65214141,0.00039452,7]
[314119516,1707999045947,-505.09925864,0.00039452,7]
[314119517,1707999045956,-500.0,0.00039452,7]
[314119518,1707999045965,-500.0,0.00039452,7]
[314119519,1707999045974,-500.0,0.00039452,7]
[314119520,1707999045982,-500.0,0.00039452,7]
[314119521,1707999045991,-388.14039945,0.00039452,7]
[314119522,1707999046000,-500.0,0.00039452,7]
[314119523,1707999046009,-500.0,0.00039452,7]
[314119524,1707999046018,-500.0,0.00039452,7]
[314119525,1707999046027,-500.0,0.00039452,7]
[314119529,1707999046036,-500.0,0.00039452,7]
[314119531,1707999046132,-500.0,0.00039452,2]
[314119533,1707999046142,-500.0,0.00039452,7]
[314119535,1707999046151,-500.0,0.00039452,7]
[314119538,1707999046161,-1224.88,0.00039452,7]
[314119541,1707999046170,-516.7573532,0.00039452,7]
[314119544,1707999046180,-511.47203932,0.00039452,7]
[314119547,1707999046190,-500.0,0.00039452,7]
[314119550,1707999046199,-500.0,0.00039452,7]
[314119552,1707999046209,-510.8869925,0.00039452,7]
[314119555,1707999046218,-500.0,0.00039452,7]
[314119556,1707999046227,-500.0,0.00039452,7]
[314119559,1707999046237,-500.0,0.00039452,7]
[314119561,1707999046246,-500.0,0.00039452,7]
[314119565,1707999046256,-500.0,0.00039452,7]
[314119569,1707999046265,-500.0,0.00039452,7]
[314119573,1707999046274,-500.0,0.00039452,7]
[314119575,1707999046283,-322.38230736,0.00039452,7]
[314119577,1707999046293,-500.0,0.00039452,7]
[314119579,1707999046305,-500.0,0.00039452,2]
[314119581,1707999046314,-383.46066521,0.00039452,7]
[314119584,1707999046323,-500.0,0.00039452,7]
[314119585,1707999046332,-500.0,0.00039452,7]
[314119587,1707999046342,-530.38277223,0.00039452,7]
[314119589,1707999046351,-500.0,0.00039452,7]
[314119591,1707999046360,-569.50626155,0.00039452,2]
[314119593,1707999046369,-200.67217129,0.00039452,7]
[314119595,1707999046379,-500.0,0.00039452,7]
[314119597,1707999046388,-500.0,0.00039452,7]
[314119600,1707999046397,-587.91,0.00039452,7]
[314119601,1707999046405,-500.0,0.00039452,7]
[314119603,1707999046414,-515.84,0.00039452,7]
[314119605,1707999046424,-510.98758277,0.00039452,7]
[314119607,1707999046435,-500.0,0.00039452,7]
[314119609,1707999046444,-500.0,0.00039452,7]
[314119611,1707999046453,-500.0,0.00039452,7]
[314119612,1707999046463,-500.43227911,0.00039452,7]
[314119613,1707999046473,-508.70345404,0.00039452,7]
[314119614,1707999046482,-500.0,0.00039452,7]
[314119615,1707999046491,-511.88163367,0.00039452,7]
[314119616,1707999046499,-745.34,0.00039452,7]
[314119617,1707999046509,-598.61435659,0.00039452,7]
[314119618,1707999046518,-515.76233783,0.00039452,7]
[314119619,1707999046527,-525.16268876,0.00039452,7]
[314119620,1707999046536,-500.0,0.00039452,7]
[314119621,1707999046546,-500.0,0.00039452,7]
[314119622,1707999046555,-500.0,0.00039452,7]
[314119623,1707999046564,-500.0,0.00039452,7]
[314119624,1707999046573,-518.84647288,0.00039452,7]
[314119625,1707999046582,-500.0,0.00039452,7]
[314119626,1707999046592,-500.0,0.00039452,7]
[314119627,1707999046601,-586.38,0.00039452,7]
[314119628,1707999046611,-500.0,0.00039452,7]
[314119629,1707999046621,-500.0,0.00039452,7]
[314119630,1707999046631,-500.0,0.00039452,7]
[314119631,1707999046640,-500.0,0.00039452,7]
[314119632,1707999046649,-500.0,0.00039452,7]
[314119633,1707999046658,-500.0,0.00039452,7]
[314119634,1707999046668,-500.0,0.00039452,7]
[314119635,1707999046677,-500.0,0.00039452,7]
[314119636,1707999046686,-521.14197845,0.00039452,7]
[314119637,1707999046695,-500.0,0.00039452,7]
[314119638,1707999046704,-500.0,0.00039452,7]
[314119639,1707999046712,-517.8069897,0.00039452,7]
[314119640,1707999046721,-500.0,0.00039452,7]
[314119641,1707999046731,-500.0,0.00039452,7]
[314119642,1707999046739,-500.0,0.00039452,7]
[314119643,1707999046748,-500.0,0.00039452,7]
[314119644,1707999046757,-500.0,0.00039452,7]
[314119645,1707999046767,-500.0,0.00039452,7]
[314119646,1707999046776,-530.86291692,0.00039452,7]
[314119647,1707999046786,-500.0,0.00039452,7]
[314119649,1707999046795,-500.0,0.00039452,7]
[314119650,1707999046805,-500.0,0.00039452,7]
[314119651,1707999046814,-500.0,0.00039452,7]
[314119652,1707999046823,-500.0,0.00039452,7]
[314119653,1707999046832,-288.44286172,0.00039452,7]
[314119654,1707999046841,-500.0,0.00039452,7]
[314119655,1707999046850,-500.0,0.00039452,7]
[314119656,1707999046859,-500.0,0.00039452,7]
[314119657,1707999046869,-500.0,0.00039452,7]
[314119658,1707999046879,-500.0,0.00039452,7]
[314119659,1707999046887,-500.0,0.00039452,7]
[314119660,1707999046896,-500.0,0.00039452,7]
[314119661,1707999046905,-500.0,0.00039452,7]
[314119662,1707999046915,-500.0,0.00039452,7]
[314119663,1707999046924,-500.0,0.00039452,2]
[314119664,1707999046933,-500.0,0.00039452,7]
[314119665,1707999046942,-500.0,0.00039452,7]
[314119666,1707999046950,-500.0,0.00039452,7]
[314119667,1707999046959,-1000.0,0.00039452,120]
[314119668,1707999046968,-500.0,0.00039452,7]
[314119669,1707999046978,-500.0,0.00039452,7]
[314119670,1707999046987,-500.0,0.00039452,7]
[314119671,1707999046995,-500.45777949,0.00039452,7]
[314119672,1707999047005,-599.87343882,0.00039452,7]
[314119673,1707999047015,-500.0,0.00039452,7]
[314119674,1707999047024,-500.0,0.00039452,7]
[314119675,1707999047033,-500.0,0.00039452,7]
[314119676,1707999047043,-500.0,0.00039452,7]
[314119677,1707999047052,-500.0,0.00039452,7]
[314119678,1707999047061,-500.0,0.00039452,7]
[314119679,1707999047072,-500.0,0.00039452,7]
[314119680,1707999047081,-500.0,0.00039452,7]
[314119681,1707999047090,-500.0,0.00039452,7]
[314119682,1707999047099,-500.0,0.00039452,7]
[314119683,1707999047108,-500.0,0.00039452,7]
[314119684,1707999047117,-500.0,0.00039452,7]
[314119685,1707999047131,-500.0,0.00039452,7]
[314119686,1707999047140,-500.0,0.00039452,7]
[314119687,1707999047149,-176.49,0.00039452,7]
[314119688,1707999047158,-537.30757154,0.00039452,7]
[314119689,1707999047167,-500.0,0.00039452,7]
[314119690,1707999047175,-500.0,0.00039452,7]
[314119691,1707999047183,-500.0,0.00039452,7]
[314119692,1707999047193,-500.0,0.00039452,7]
[314119693,1707999047202,-500.0,0.00039452,7]
[314119694,1707999047211,-500.0,0.00039452,7]
[314119695,1707999047220,-518.18032554,0.00039452,7]
[314119696,1707999047230,-500.0,0.00039452,7]
[314119697,1707999047239,-500.0,0.00039452,2]
[314119698,1707999047249,-500.0,0.00039452,7]
[314119699,1707999047258,-540.99,0.00039452,7]
[314119700,1707999047268,-500.0,0.00039452,7]
[314119701,1707999047277,-500.0,0.00039452,7]
[314119702,1707999047286,-500.0,0.00039452,7]
[314119703,1707999047300,-500.0,0.00039452,7]
[314119704,1707999047309,-500.0,0.00039452,2]
[314119705,1707999047319,-250.03100708,0.00039452,7]
[314119706,1707999047328,-500.0,0.00039452,7]
[314119707,1707999047337,-500.0,0.00039452,7]
[314119708,1707999047346,-500.0,0.00039452,7]
[314119709,1707999047355,-500.0,0.00039452,7]
[314119710,1707999047364,-500.0,0.00039452,7]
[314119711,1707999047375,-493.54255077,0.00039452,7]
[314119712,1707999047384,-500.0,0.00039452,7]
[314119713,1707999047395,-500.0,0.00039452,7]
[314119714,1707999047404,-500.0,0.00039452,7]
[314119715,1707999047413,-500.0,0.00039452,7]
[314119716,1707999047423,-500.0,0.00039452,7]
[314119717,1707999047434,-500.0,0.00039452,7]
[314119718,1707999047451,-500.0,0.00039452,7]
[314119719,1707999047460,-488.85437777,0.00039452,7]
[314119720,1707999047472,-500.0,0.00039452,7]
[314119721,1707999047482,-500.0,0.00039452,7]
[314119722,1707999047490,-615.39712915,0.00039452,7]
[314119723,1707999047499,-500.0,0.00039452,7]
[314119724,1707999047510,-500.0,0.00039452,7]
[314119725,1707999047519,-500.0,0.00039452,7]
[314119726,1707999047528,-500.0,0.00039452,7]
[314119727,1707999047537,-500.0,0.00039452,7]
[314119728,1707999047546,-500.0,0.00039452,7]
[314119729,1707999047555,-500.0,0.00039452,7]
[314119730,1707999047563,-500.0,0.00039452,7]
[314119731,1707999047572,-512.93149235,0.00039452,7]
[314119732,1707999047581,-500.0,0.00039452,7]
[314119733,1707999047590,-500.0,0.00039452,7]
[314119734,1707999047600,-500.0,0.00039452,7]
[314119735,1707999047609,-761.77,0.00039452,7]
[314119736,1707999047619,-510.31746306,0.00039452,7]
[314119737,1707999047629,-500.0,0.00039452,7]
[314119738,1707999047638,-500.0,0.00039452,7]
[314119739,1707999047647,-222.39316006,0.00039452,7]
[314119740,1707999047656,-542.35782419,0.00039452,7]
[314119741,1707999047664,-500.0,0.00039452,7]
[314119742,1707999047673,-570.29484709,0.00039452,7]
[314119743,1707999047682,-500.0,0.00039452,7]
[314119744,1707999047691,-500.0,0.00039452,7]
[314119745,1707999047701,-500.0,0.00039452,7]
[314119746,1707999047712,-500.0,0.00039452,7]
[314119747,1707999047794,-500.0,0.00039452,7]
[314119748,1707999047812,-500.0,0.00039452,7]
[314119749,1707999047822,-503.27057917,0.00039452,7]
[314119750,1707999047831,-500.0,0.00039452,7]
[314119751,1707999047842,-500.0,0.00039452,7]
[314119752,1707999047852,-500.0,0.00039452,7]
[314119753,1707999047862,-500.0,0.00039452,7]
[314119754,1707999047873,-598.57207626,0.00039452,7]
[314119755,1707999047883,-500.0,0.00039452,7]
[314119756,1707999047893,-500.0,0.00039452,7]
[314119757,1707999047903,-500.0,0.00039452,7]
[314119758,1707999047913,-500.0,0.00039452,7]
[314119759,1707999047924,-500.0,0.00039452,7]
[314119760,1707999047934,-500.0,0.00039452,7]
[314119761,1707999047944,-797.34,0.00039452,7]
[314119762,1707999047954,-500.0,0.00039452,7]
[314119763,1707999047963,-500.0,0.00039452,7]
[314119764,1707999047973,-500.0,0.00039452,7]
[314119765,1707999047983,-500.0,0.00039452,7]
[314119766,1707999047994,-500.0,0.00039452,7]
[314119767,1707999048003,-634.06752593,0.00039452,7]
[314119768,1707999048013,-500.0,0.00039452,7]
[314119769,1707999048022,-500.0,0.00039452,7]
[314119770,1707999048033,-500.0,0.00039452,7]
[314119771,1707999048042,-500.0,0.00039452,7]
[314119772,1707999048052,-500.0,0.00039452,7]
[314119773,1707999048062,-500.0,0.00039452,7]
[314119774,1707999048071,-500.0,0.00039452,7]
[314119775,1707999048081,-500.0,0.00039452,7]
[314119776,1707999048090,-500.0,0.00039452,7]
[314119777,1707999048100,-500.0,0.00039452,7]
[314119778,1707999048109,-500.0,0.00039452,7]
[314119779,1707999048118,-551.78418016,0.00039452,7]
[314119780,1707999048131,-500.0,0.00039452,7]
[314119781,1707999048141,-500.0,0.00039452,7]
[314119782,1707999048150,-512.28992833,0.00039452,7]
[314119783,1707999048159,-500.0,0.00039452,7]
[314119784,1707999048169,-500.0,0.00039452,7]
[314119785,1707999048178,-444.90498844,0.00039452,7]
[314119786,1707999048188,-536.33105264,0.00039452,7]
[314119787,1707999048197,-500.0,0.00039452,7]
[314119788,1707999048206,-500.0,0.00039452,7]
[314119789,1707999048216,-500.0,0.00039452,7]
[314119790,1707999048225,-500.0,0.00039452,7]
[314119791,1707999048236,-500.0,0.00039452,7]
[314119792,1707999048246,-500.0,0.00039452,7]
[314119793,1707999048256,-500.0,0.00039452,7]
[314119794,1707999048266,-500.0,0.00039452,7]
[314119795,1707999048276,-500.0,0.00039452,7]
[314119796,1707999048286,-500.0,0.00039452,7]
[314119797,1707999048295,-500.0,0.00039452,7]
[314119798,1707999048304,-500.0,0.00039452,7]
[314119799,1707999048314,-500.0,0.00039452,7]
[314119800,1707999048323,-500.0,0.00039452,7]
[314119801,1707999048333,-500.0,0.00039452,7]
[314119802,1707999048343,-520.36805467,0.00039452,7]
[314119803,1707999048353,-500.0,0.00039452,7]
[314119804,1707999048363,-500.0,0.00039452,7]
[314119805,1707999048374,-515.41640257,0.00039452,7]
[314119806,1707999048383,-500.0,0.00039452,7]
[314119807,1707999048393,-500.0,0.00039452,7]
[314119808,1707999048402,-500.0,0.00039452,7]
[314119809,1707999048412,-150.0,0.00039452,7]